bitfinex/quotes_BTCUSD_20250614
["timestamp","ask_amount","ask_price","bid_price","bid_amount"]
[1749930780507,0.0049723,104880.0,104870.0,0.33217007]
[1749930780721,0.0049723,104880.0,104870.0,0.49025007]
[1749930782040,0.0049723,104880.0,104870.0,0.33217007]
[1749930782260,0.0049723,104880.0,104870.0,0.49021007]
[1749930782474,0.0049723,104880.0,104870.0,0.26851805]
[1749930782694,0.0049723,104880.0,104870.0,0.42647805]
[1749930788381,0.0049723,104880.0,104870.0,0.26851805]
[1749930788632,0.0049723,104880.0,104870.0,0.42627805]
[1749930790361,0.0049723,104880.0,104870.0,0.48988607]
[1749930791367,0.01906622,104890.0,104880.0,0.26949713]
[1749930791587,0.05679057,104890.0,104880.0,0.26949713]
[1749930791804,0.01865731,104890.0,104880.0,0.26949713]
[1749930792052,0.01865731,104890.0,104880.0,0.3078755]
[1749930792250,0.0190645,104900.0,104890.0,0.26947623]
[1749930792459,0.0190645,104900.0,104890.0,0.26952378]
[1749930793131,0.02859711,104900.0,104890.0,0.26952378]
[1749930793359,0.34,104900.0,104890.0,0.26952378]
[1749930793572,0.01866496,104900.0,104890.0,0.47901021]
[1749930793780,0.08933553,104910.0,104890.0,0.47901021]
[1749930793781,0.02859156,104920.0,104910.0,0.24483442]
[1749930794005,0.61038396,104920.0,104910.0,0.22577147]
[1749930794217,0.63312954,104920.0,104910.0,0.23530317]
[1749930794419,0.63312954,104920.0,104910.0,0.24483478]
[1749930794679,0.63810184,104920.0,104910.0,0.24483478]
[1749930795340,0.64110184,104920.0,104910.0,0.24483478]
[1749930795568,0.64110184,104920.0,104910.0,0.22577147]
[1749930795779,0.7435902,104920.0,104910.0,0.21623959]
[1749930796413,0.64744098,104920.0,104910.0,0.22577156]
[1749930796626,0.64744098,104920.0,104910.0,0.21623959]
[1749930796843,0.63791028,104920.0,104910.0,0.21623959]
[1749930797273,0.63791028,104920.0,104910.0,0.23530344]
[1749930797481,0.66712741,104920.0,104910.0,0.23530344]
[1749930797685,0.68669319,104920.0,104910.0,0.23530344]
[1749930797927,0.68669319,104920.0,104910.0,0.25436693]
[1749930797928,0.66129319,104920.0,104910.0,0.25436693]
[1749930798166,0.66129319,104920.0,104910.0,0.24483523]
[1749930798410,0.66129319,104920.0,104910.0,0.22577156]
[1749930798844,0.61965319,104920.0,104910.0,0.22577156]
[1749930799288,0.61965319,104920.0,104910.0,0.24483505]
[1749930799971,0.61965319,104920.0,104910.0,0.22577156]
[1749930800189,0.61965319,104920.0,104910.0,0.23530344]
[1749930801268,0.61012221,104920.0,104910.0,0.23530344]
[1749930801480,0.6190375,104920.0,104910.0,0.22577156]
[1749930801932,0.6442375,104920.0,104910.0,0.22577156]
[1749930802146,0.64423751,104920.0,104910.0,0.0256]
[1749930802397,0.64423749,104920.0,104910.0,0.0256]
[1749930802620,0.54017147,104910.0,104900.0,0.0243]
[1749930802838,0.0285972,104900.0,104890.0,0.25315721]
[1749930803081,0.0381299,104900.0,104890.0,0.26269037]
[1749930803292,0.0285972,104900.0,104890.0,0.26269037]
[1749930803518,0.00953207,104900.0,104890.0,0.26862297]
[1749930803735,0.03812981,104900.0,104890.0,0.2590899]
[1749930803971,0.03812918,104900.0,104890.0,0.2340899]
[1749930804186,0.04766188,104900.0,104890.0,0.2340899]
[1749930804874,0.03812909,104900.0,104890.0,0.2340899]
[1749930805383,0.04766179,104900.0,104890.0,0.2360899]
[1749930806266,0.04766179,104900.0,104890.0,0.2380899]
[1749930807363,0.04766179,104900.0,104890.0,0.2353699]
[1749930808431,0.03812909,104900.0,104890.0,0.32397792]
[1749930810177,0.04766179,104900.0,104890.0,0.32397792]
[1749930810390,0.0476617,104900.0,104890.0,0.32397792]
[1749930811276,0.02859657,104900.0,104890.0,0.32397792]
[1749930811492,0.04766179,104900.0,104890.0,0.32397792]
[1749930812165,0.03812909,104900.0,104890.0,0.2603699]
[1749930812385,0.04766233,104900.0,104890.0,0.2603699]
[1749930813477,0.03812963,104900.0,104890.0,0.2603699]
[1749930813929,0.68347676,104910.0,104890.0,0.24560297]
[1749930814136,0.70737676,104910.0,104900.0,0.0251]
[1749930814991,0.66573676,104910.0,104900.0,0.0251]
[1749930815215,0.70737676,104910.0,104900.0,0.0251]
[1749930816290,0.70737676,104910.0,104900.0,0.22529055]
[1749930816503,0.70737676,104910.0,104900.0,0.21575776]
[1749930816720,0.70737676,104910.0,104900.0,0.0251]
[1749930816931,0.01906504,104900.0,104890.0,0.25123594]
[1749930817631,0.01906495,104900.0,104890.0,0.25123594]
[1749930818090,0.00953234,104900.0,104890.0,0.33785495]
[1749930818317,0.01906495,104900.0,104890.0,0.27543594]
[1749930818533,0.02859765,104900.0,104890.0,0.27743594]
[1749930818740,0.02859765,104900.0,104890.0,0.27943594]
[1749930818948,0.02859711,104900.0,104890.0,0.27943594]
[1749930819370,0.03812981,104900.0,104890.0,0.27943594]
[1749930819576,0.03812981,104900.0,104890.0,0.26990297]
[1749930820824,0.0476626,104900.0,104890.0,0.26990297]
[1749930821037,0.33412922,104910.0,104900.0,0.0261]
[1749930821247,0.31138135,104910.0,104900.0,0.0261]
[1749930825467,0.65138135,104910.0,104900.0,0.0261]
[1749930825692,0.67412922,104910.0,104900.0,0.0261]
[1749930825919,0.55455776,104900.0,104890.0,0.02514755]
[1749930826162,0.67354739,104900.0,104890.0,4.755e-05]
[1749930827037,0.48288963,104900.0,104890.0,4.755e-05]
[1749930827279,0.67354739,104900.0,104890.0,4.755e-05]
[1749930827504,0.67354739,104900.0,104890.0,0.00204755]
[1749930827737,0.67354739,104900.0,104890.0,0.00404755]
[1749930828421,0.67354739,104900.0,104890.0,0.02964755]
[1749930830381,0.64964739,104900.0,104890.0,0.03918134]
[1749930830602,0.64964739,104900.0,104890.0,0.02964755]
[1749930831489,0.67484739,104900.0,104890.0,0.02964755]
[1749930832644,0.83248739,104900.0,104890.0,0.00404755]
[1749930832885,0.87412739,104900.0,104890.0,0.00404755]
[1749930833101,0.87412739,104900.0,104890.0,0.02934755]
[1749930834837,0.71648739,104900.0,104890.0,0.02934755]
[1749930835797,0.69128739,104900.0,104890.0,0.02934755]
[1749930841074,0.71558739,104900.0,104890.0,0.02934755]
[1749930846193,0.81173661,104900.0,104890.0,0.02934755]
[1749930846667,0.71558739,104900.0,104890.0,0.02934755]
[1749930852857,0.69128739,104900.0,104890.0,0.02934755]
[1749930855618,0.74451937,104900.0,104890.0,0.02934755]
[1749930856298,0.71971937,104900.0,104890.0,0.02934755]
[1749930857368,0.87719937,104900.0,104890.0,0.02934755]
[1749930859543,0.67807937,104900.0,104890.0,0.02934755]
[1749930859759,0.87719937,104900.0,104890.0,0.02934755]
[1749930862136,0.90169937,104900.0,104890.0,0.02934755]
[1749930862605,0.90169937,104900.0,104890.0,0.00404755]
[1749930862606,1.17544022,104900.0,104890.0,0.00404755]
[1749930862825,1.18500817,104900.0,104890.0,0.00404755]
[1749930863045,1.27185215,104900.0,104890.0,0.00404755]
[1749930863276,0.54976289,104880.0,104870.0,0.0283]
[1749930863494,0.82639252,104880.0,104870.0,0.02844269]
[1749930863710,0.85089252,104880.0,104870.0,0.02844269]
[1749930864565,0.85089252,104880.0,104870.0,0.03044269]
[1749930865427,0.85089252,104880.0,104870.0,0.02844269]
[1749930865652,0.86743337,104880.0,104870.0,0.00014269]
[1749930866359,0.86943337,104880.0,104870.0,0.00014269]
[1749930867017,0.89795517,104880.0,104870.0,0.00014269]
[1749930868346,0.86943337,104880.0,104870.0,0.00014269]
[1749930869012,1.06943337,104880.0,104870.0,0.00014269]
[1749930869713,1.16558259,104880.0,104870.0,0.00014269]
[1749930870886,1.06943337,104880.0,104870.0,0.00014269]
[1749930872233,1.10943337,104880.0,104870.0,0.00014269]
[1749930872444,1.12863337,104880.0,104870.0,0.00014269]
[1749930873323,1.15087337,104880.0,104870.0,0.00014269]
[1749930874222,0.95179337,104880.0,104870.0,0.00014269]
[1749930874465,1.15087337,104880.0,104870.0,0.00014269]
[1749930874953,0.95179337,104880.0,104870.0,0.00014269]
[1749930875199,1.15087337,104880.0,104870.0,0.00014269]
[1749930875427,0.75478859,104870.0,104860.0,0.02368269]
[1749930875637,0.87377822,104870.0,104860.0,0.02382588]
[1749930875849,1.07285822,104870.0,104860.0,0.02382588]
[1749930876097,1.07285822,104870.0,104860.0,0.0516582]
[1749930876344,1.07285822,104870.0,104860.0,0.02382588]
[1749930876766,1.07385822,104870.0,104860.0,0.02382588]
[1749930876992,1.0738638,104870.0,104860.0,0.02382588]
[1749930877435,1.0748638,104870.0,104860.0,0.02382588]
[1749930878516,1.0749038,104870.0,104860.0,0.05092588]
[1749930878741,0.36107077,104870.0,104860.0,0.26072896]
[1749930878959,0.36107077,104870.0,104860.0,0.27026503]
[1749930878960,0.56131869,104870.0,104860.0,0.27026503]
[1749930879911,0.36106985,104870.0,104860.0,0.27980091]
[1749930880124,0.342,104870.0,104860.0,0.27980091]
[1749930880343,0.35153488,104870.0,104860.0,0.32780948]
[1749930880564,0.35153479,104870.0,104860.0,0.323946]
[1749930881277,0.36106976,104870.0,104860.0,0.323946]
[1749930882134,0.37060492,104870.0,104860.0,0.323946]
[1749930882381,0.36106976,104870.0,104860.0,0.323946]
[1749930882602,0.37060492,104870.0,104860.0,0.323946]
[1749930883125,0.36106976,104870.0,104860.0,0.323946]
[1749930883633,0.35153479,104870.0,104860.0,0.323946]
[1749930883875,0.36106976,104870.0,104860.0,0.27593743]
[1749930884081,0.36106967,104870.0,104860.0,0.27593743]
[1749930885628,0.37060473,104870.0,104860.0,0.27593743]
[1749930887194,0.36106967,104870.0,104860.0,0.27593743]
[1749930887406,0.37060473,104870.0,104860.0,0.27593743]
[1749930888252,0.38013998,104870.0,104860.0,0.27593743]
[1749930889115,0.37060473,104870.0,104860.0,0.27593743]
[1749930889349,0.38013998,104870.0,104860.0,0.27593743]
[1749930891550,0.38967532,104870.0,104860.0,0.27593743]
[1749930891711,0.38013998,104870.0,104860.0,0.33932365]
[1749930891913,0.37060473,104870.0,104860.0,0.33932365]
[1749930892152,0.38013998,104870.0,104860.0,0.27593743]
[1749930892963,0.37060473,104870.0,104860.0,0.27593743]
[1749930893166,0.03060473,104870.0,104860.0,0.27593743]
[1749930894216,0.002,104870.0,104860.0,0.27593743]
[1749930894661,0.20900022,104880.0,104870.0,0.27361805]
[1749930894874,0.18624274,104880.0,104870.0,0.32197439]
[1749930895101,0.02860274,104880.0,104870.0,0.32197439]
[1749930896687,0.02960274,104880.0,104870.0,0.32197439]
[1749930897365,0.03913735,104880.0,104870.0,0.32197439]
[1749930897583,0.04013735,104880.0,104870.0,0.32197439]
[1749930897805,0.04013735,104880.0,104870.0,0.27361805]
[1749930900633,0.21176325,104880.0,104870.0,0.22644783]
[1749930900851,0.27970325,104880.0,104870.0,0.21691231]
[1749930901064,0.27970325,104880.0,104870.0,0.22644783]
[1749930901284,0.19071231,104870.0,104860.0,0.26634627]
[1749930901509,0.21931832,104870.0,104860.0,0.24808224]
[1749930901767,0.02860656,104870.0,104860.0,0.24808224]
[1749930901991,0.02860629,104870.0,104860.0,0.24808224]
[1749930902210,0.02860629,104870.0,104860.0,0.25761812]
[1749930902211,0.03814154,104870.0,104860.0,0.25761812]
[1749930902441,0.22885385,104870.0,104860.0,0.24808224]
[1749930902668,0.22885385,104870.0,104860.0,0.25961812]
[1749930902887,0.03814154,104870.0,104860.0,0.25961812]
[1749930903109,0.22885385,104870.0,104860.0,0.25008224]
[1749930903325,0.03814154,104870.0,104860.0,0.25961812]
[1749930903539,0.22885385,104870.0,104860.0,0.25208224]
[1749930903753,0.23838946,104870.0,104860.0,0.25208224]
[1749930904434,0.36543904,104880.0,104860.0,0.25208224]
[1749930904651,0.19071231,104870.0,104860.0,0.25208224]
[1749930904870,0.00953506,104870.0,104860.0,0.36038086]
[1749930905086,0.0286051,104870.0,104860.0,0.36038086]
[1749930905527,0.0286051,104870.0,104860.0,0.35838086]
[1749930906400,0.0286051,104870.0,104860.0,0.35638086]
[1749930906621,0.0286051,104870.0,104860.0,0.35838086]
[1749930907095,0.03814044,104870.0,104860.0,0.35838086]
[1749930907752,0.03814044,104870.0,104860.0,0.36038086]
[1749930908221,0.0286051,104870.0,104860.0,0.29755382]
[1749930909622,0.03814126,104870.0,104860.0,0.24254627]
[1749930909836,0.3605252,104870.0,104860.0,0.00414319]
[1749930910713,0.42178787,104870.0,104860.0,0.00414319]
[1749930910924,0.44454535,104870.0,104860.0,0.00414319]
[1749930911345,0.44454535,104870.0,104860.0,0.00214319]
[1749930911768,0.44654535,104870.0,104860.0,0.00214319]
[1749930912222,0.44654535,104870.0,104860.0,0.02824319]
[1749930912433,0.44654535,104870.0,104860.0,0.05291074]
[1749930912848,0.04229833,104870.0,104860.0,0.05291074]
[1749930913060,0.01954085,104870.0,104860.0,0.05291074]
[1749930913511,0.21025316,104870.0,104860.0,0.05291074]
[1749930913939,0.22932429,104870.0,104860.0,0.262714]
[1749930914152,0.42840429,104870.0,104860.0,0.30055007]
[1749930914395,0.0468277,104870.0,104860.0,0.31008595]
[1749930914608,0.01453497,104870.0,104860.0,0.31008595]
[1749930915445,0.01253497,104870.0,104860.0,0.31008595]
[1749930915666,0.00953497,104870.0,104860.0,0.31008595]
[1749930915874,0.01053497,104870.0,104860.0,0.31008595]
[1749930916305,0.01551785,104870.0,104860.0,0.31008595]
[1749930917388,0.01551785,104870.0,104860.0,0.2834184]
[1749930917817,0.01551776,104870.0,104860.0,0.2834184]
[1749930918471,0.01551767,104870.0,104860.0,0.2834184]
[1749930918682,0.02505264,104870.0,104860.0,0.2834184]
[1749930919105,0.0345878,104870.0,104860.0,0.2834184]
[1749930919314,0.02505264,104870.0,104860.0,0.2834184]
[1749930919568,0.01551767,104870.0,104860.0,0.2834184]
[1749930920885,0.00598288,104870.0,104860.0,0.2834184]
[1749930921980,0.001,104870.0,104860.0,0.2834184]
[1749930923915,0.45050661,104880.0,104860.0,0.2834184]
[1749930923916,0.24409071,104880.0,104870.0,0.27561796]
[1749930924119,0.2212673,104880.0,104870.0,0.27561796]
[1749930925032,0.41837732,104880.0,104870.0,0.2660829]
[1749930925249,0.42037732,104880.0,104870.0,0.2660829]
[1749930925459,0.42337732,104880.0,104870.0,0.2660829]
[1749930925914,0.44620073,104880.0,104870.0,0.2660829]
[1749930926351,0.24712073,104880.0,104870.0,0.2660829]
[1749930926551,0.42337732,104880.0,104870.0,0.2660829]
[1749930927021,0.22429732,104880.0,104870.0,0.2660829]
[1749930927242,0.42337732,104880.0,104870.0,0.2660829]
[1749930927636,0.44620073,104880.0,104870.0,0.2660829]
[1749930929121,0.28856073,104880.0,104870.0,0.2660829]
[1749930929330,0.42337732,104880.0,104870.0,0.2660829]
[1749930929535,0.44620073,104880.0,104870.0,0.2660829]
[1749930930423,0.44620073,104880.0,104870.0,0.25654774]
[1749930930632,0.44620073,104880.0,104870.0,0.26608299]
[1749930933932,0.43666657,104880.0,104870.0,0.25654774]
[1749930934138,0.41384316,104880.0,104870.0,0.25654774]
[1749930936166,0.03907059,104870.0,104860.0,0.00014319]
[1749930936399,0.02407883,104840.0,104820.0,0.28482294]
[1749930936623,0.02407883,104840.0,104820.0,0.31059852]
[1749930936624,0.02861629,104830.0,104820.0,0.31059852]
[1749930936850,0.02861629,104830.0,104820.0,0.30105872]
[1749930936851,0.0190775,104830.0,104820.0,0.30105872]
[1749930937063,0.0190775,104830.0,104820.0,0.35024382]
[1749930937064,0.21940174,104830.0,104820.0,0.35024382]
[1749930937277,0.20986313,104830.0,104820.0,0.34070384]
[1749930937501,0.20986313,104830.0,104820.0,0.3597838]
[1749930937748,0.20986313,104830.0,104820.0,0.35978389]
[1749930937956,0.20032424,104830.0,104820.0,0.35978389]
[1749930938604,0.03815573,104830.0,104820.0,0.38086321]
[1749930938824,0.03815573,104830.0,104820.0,0.3316782]
[1749930939082,0.22894081,104830.0,104820.0,0.32967838]
[1749930939289,0.03815573,104830.0,104820.0,0.33167728]
[1749930939501,0.04769498,104830.0,104820.0,0.32213776]
[1749930939931,0.04769498,104830.0,104820.0,0.32513776]
[1749930940146,0.21940256,104830.0,104820.0,0.31559815]
[1749930940590,0.21940256,104830.0,104820.0,0.31259815]
[1749930940808,0.01907786,104830.0,104820.0,0.38824062]
[1749930941039,0.26745619,104840.0,104830.0,0.2707022]
[1749930941267,0.28653187,104840.0,104830.0,0.2707022]
[1749930941477,0.28653187,104840.0,104830.0,0.28024099]
[1749930941929,0.56986331,104830.0,104820.0,0.04347539]
[1749930942148,0.87929242,104830.0,104820.0,0.04147539]
[1749930942365,0.87929242,104830.0,104820.0,0.05042842]
[1749930942590,0.87929242,104830.0,104820.0,0.05042869]
[1749930942817,0.87929242,104830.0,104820.0,0.05042876]
[1749930943049,0.87929242,104830.0,104820.0,0.04942876]
[1749930943269,0.87929242,104830.0,104820.0,0.04047539]
[1749930943480,0.88229242,104830.0,104820.0,0.04147539]
[1749930944338,0.88529242,104830.0,104820.0,0.04147539]
[1749930945198,0.98113556,104830.0,104820.0,0.04147539]
[1749930945897,1.00981356,104830.0,104820.0,0.04147539]
[1749930946333,0.91397042,104830.0,104820.0,0.04147539]
[1749930947180,0.90827042,104830.0,104820.0,0.04147539]
[1749930952331,0.88117042,104830.0,104820.0,0.04147539]
[1749930953505,0.35399117,104830.0,104820.0,0.26307867]
[1749930953717,0.35399117,104830.0,104820.0,0.32743785]
[1749930953718,0.006,104830.0,104820.0,0.32743785]
[1749930953933,0.006,104830.0,104820.0,0.38021768]
[1749930953934,0.35553843,104830.0,104820.0,0.38021768]
[1749930954162,0.006,104830.0,104820.0,0.38021768]
[1749930955252,0.44076749,104840.0,104830.0,0.21940174]
[1749930955471,0.45030556,104840.0,104830.0,0.21940174]
[1749930955685,0.45030556,104840.0,104830.0,0.27640174]
[1749930956095,0.4497011,104840.0,104830.0,0.3256083]
[1749930956298,0.43062515,104840.0,104830.0,0.3256083]
[1749930956499,0.44216285,104840.0,104830.0,0.3256083]
[1749930956718,0.45570083,104840.0,104830.0,0.3266083]
[1749930957336,0.38372716,104840.0,104830.0,0.3266083]
[1749930957552,0.04372716,104840.0,104830.0,0.3266083]
[1749930957972,0.04372716,104840.0,104830.0,0.34450987]
[1749930958214,0.04372716,104840.0,104830.0,0.34450986]
[1749930958391,0.04372716,104840.0,104830.0,0.3266083]
[1749930958603,0.04372716,104840.0,104830.0,0.34450995]
[1749930959248,0.04372716,104840.0,104830.0,0.27740174]
[1749930960318,0.05326477,104840.0,104830.0,0.27740174]
[1749930961448,0.06280256,104840.0,104830.0,0.27740174]
[1749930962734,0.05326477,104840.0,104830.0,0.27740174]
[1749930963817,0.06280256,104840.0,104830.0,0.27740174]
[1749930964019,0.04372716,104840.0,104830.0,0.34594568]
[1749930964233,0.2750731,104850.0,104840.0,0.23974311]
[1749930964438,0.2523925,104850.0,104840.0,0.23974329]
[1749930965315,0.27592852,104850.0,104840.0,0.24074329]
[1749930965525,0.27592852,104850.0,104840.0,0.23120513]
[1749930965526,0.27992852,104850.0,104840.0,0.23120513]
[1749930965734,0.05759278,104850.0,104840.0,0.31492326]
[1749930965958,0.26741541,104850.0,104840.0,0.31492344]
[1749930966183,0.26741541,104850.0,104840.0,0.30538574]
[1749930966416,0.26741541,104850.0,104840.0,0.31492381]
[1749930966860,0.25787871,104850.0,104840.0,0.31492381]
[1749930967520,0.25787871,104850.0,104840.0,0.28148136]
[1749930971422,0.24834174,104850.0,104840.0,0.27194329]
[1749930971653,0.23880449,104850.0,104840.0,0.08117659]
[1749930972325,0.3495871,104850.0,104840.0,0.0319]
[1749930972545,0.5351271,104850.0,104840.0,0.002]
[1749930972766,0.5578077,104850.0,104840.0,0.002]
[1749930977160,0.65395692,104850.0,104840.0,0.002]
[1749930977560,0.68244872,104850.0,104840.0,0.002]
[1749930977808,0.5862995,104850.0,104840.0,0.002]
[1749930980949,0.5862995,104850.0,104840.0,0.0319]
[1749930983709,0.62429045,104850.0,104840.0,0.0319]
[1749930983999,0.59639045,104850.0,104840.0,0.0319]
[1749930986876,0.62506045,104850.0,104840.0,0.0319]
[1749930988613,0.65983338,104850.0,104840.0,0.0319]
[1749930989076,0.63134158,104850.0,104840.0,0.0319]
[1749930989519,0.66164158,104850.0,104840.0,0.002]
[1749930990217,0.69012246,104850.0,104840.0,0.0293]
[1749930990434,0.65982246,104850.0,104840.0,0.0293]
[1749930990661,0.22440379,104830.0,104820.0,0.09797539]
[1749930990873,0.37180382,104830.0,104820.0,0.09797539]
[1749930991316,0.34332615,104830.0,104820.0,0.09797539]
[1749930991783,0.34332615,104830.0,104820.0,0.10097539]
[1749930991998,0.34432615,104830.0,104820.0,0.10097539]
[1749930992207,0.34432615,104830.0,104820.0,0.10297539]
[1749930993269,0.32164555,104830.0,104820.0,0.10297539]
[1749930994762,0.40380124,104830.0,104820.0,0.10297539]
[1749930996505,0.15947062,104830.0,104820.0,0.10297539]
[1749931001945,0.19078508,104830.0,104820.0,0.07567539]
[1749931002160,0.19078508,104830.0,104820.0,0.10347539]
[1749931002601,0.54625056,104840.0,104820.0,0.27601832]
[1749931002801,0.96858384,104840.0,104830.0,0.0297]
[1749931003797,0.96958384,104840.0,104830.0,0.0307]
[1749931005094,0.96858384,104840.0,104830.0,0.0307]
[1749931005506,0.96958384,104840.0,104830.0,0.0307]
[1749931005925,0.62027401,104840.0,104830.0,0.0307]
[1749931006341,0.82027401,104840.0,104830.0,0.0307]
[1749931006553,1.01105683,104840.0,104830.0,0.0307]
[1749931009330,1.01105683,104840.0,104830.0,0.02934]
[1749931011935,1.03950616,104840.0,104830.0,0.02934]
[1749931016043,1.07747639,104840.0,104830.0,0.02934]
[1749931016461,0.81166561,104840.0,104830.0,0.05824]
[1749931016675,0.61166561,104840.0,104830.0,0.29228604]
[1749931016859,0.75989287,104840.0,104830.0,0.3113639]
[1749931017101,0.77441385,104840.0,104830.0,0.27764219]
[1749931017328,0.80286318,104840.0,104830.0,0.2681034]
[1749931017535,0.7933252,104840.0,104830.0,0.27764238]
[1749931018378,0.7933252,104840.0,104830.0,0.28718127]
[1749931018804,0.6357252,104840.0,104830.0,0.28718127]
[1749931021071,0.62618695,104840.0,104830.0,0.2681034]
[1749931023909,0.62618695,104840.0,104830.0,0.33475553]
[1749931024689,0.62618695,104840.0,104830.0,0.2681034]
[1749931025730,0.20630416,104840.0,104830.0,0.2681034]
[1749931027731,0.54630416,104840.0,104830.0,0.2681034]
[1749931028795,0.53676582,104840.0,104830.0,0.26810349]
[1749931028998,0.53676582,104840.0,104830.0,0.27764256]
[1749931029613,0.53676582,104840.0,104830.0,0.34524861]
[1749931030038,0.53676582,104840.0,104830.0,0.26810349]
[1749931035399,0.19676582,104840.0,104830.0,0.26810349]
[1749931035603,0.22521515,104840.0,104830.0,0.26810349]
[1749931036608,0.22521515,104840.0,104830.0,0.05824]
[1749931039150,0.23475349,104840.0,104830.0,0.25856433]
[1749931039495,0.24429156,104840.0,104830.0,0.35383336]
[1749931039809,0.24429156,104840.0,104830.0,0.34429457]
[1749931040553,0.24429156,104840.0,104830.0,0.26810349]
[1749931040760,0.23475349,104840.0,104830.0,0.27764247]
[1749931041817,0.23475349,104840.0,104830.0,0.26810349]
[1749931042033,0.22521515,104840.0,104830.0,0.26810349]
[1749931042937,0.22521515,104840.0,104830.0,0.27764256]
[1749931045040,0.22521515,104840.0,104830.0,0.28718154]
[1749931051210,0.22521515,104840.0,104830.0,0.35573749]
[1749931051431,0.22521515,104840.0,104830.0,0.34619851]
[1749931052295,0.22521515,104840.0,104830.0,0.27764256]
[1749931052488,0.22521515,104840.0,104830.0,0.26810349]
[1749931055600,0.22521515,104840.0,104830.0,0.27764256]
[1749931056287,0.22521515,104840.0,104830.0,0.28718154]
[1749931056499,0.22521515,104840.0,104830.0,0.29672043]
[1749931060523,0.04397049,104840.0,104830.0,0.29671988]
[1749931060739,0.05350837,104840.0,104830.0,0.29671933]
[1749931061611,0.06304662,104840.0,104830.0,0.29671933]
[1749931062071,0.26335184,104840.0,104830.0,0.26810313]
[1749931062309,0.2442758,104840.0,104830.0,0.05824]
[1749931062528,0.3052403,104840.0,104830.0,0.06777925]
[1749931062758,0.29570196,104840.0,104830.0,0.06777925]
[1749931063183,0.29570196,104840.0,104830.0,0.02934]
[1749931063408,0.33367219,104840.0,104830.0,0.02934]
[1749931063860,0.26316944,104840.0,104830.0,0.02934]
[1749931066074,0.26316944,104840.0,104830.0,0.03887925]
[1749931066287,0.22519921,104840.0,104830.0,0.07077925]
[1749931066996,0.04043678,104840.0,104830.0,0.07077925]
[1749931067207,0.04043678,104840.0,104830.0,0.2711034]
[1749931069454,0.04997512,104840.0,104830.0,0.2711034]
[1749931069658,0.05951319,104840.0,104830.0,0.28064238]
[1749931069863,0.05951319,104840.0,104830.0,0.29018127]
[1749931070949,0.05951319,104840.0,104830.0,0.28064238]
[1749931071410,0.05951319,104840.0,104830.0,0.29018127]
[1749931074160,0.34814565,104850.0,104830.0,0.29018127]
[1749931074444,0.34814565,104850.0,104840.0,0.0321]
[1749931074445,0.76095803,104850.0,104840.0,0.0321]
[1749931074680,0.8051,104820.0,104800.0,0.0158304]
[1749931074909,0.84886559,104810.0,104800.0,0.01587795]
[1749931075474,0.87754959,104810.0,104800.0,0.02483176]
[1749931075714,0.87754959,104810.0,104800.0,0.02483295]
[1749931076117,0.72006959,104810.0,104800.0,0.02483295]
[1749931076324,0.87754959,104810.0,104800.0,0.02483295]
[1749931076733,0.87754959,104810.0,104800.0,0.01587795]
[1749931077191,0.87754959,104810.0,104800.0,0.01687795]
[1749931078990,0.95119174,104810.0,104800.0,0.01687795]
[1749931079611,0.87754959,104810.0,104800.0,0.01687795]
[1749931083024,0.68936959,104810.0,104800.0,0.01687795]
[1749931083250,0.41416015,104810.0,104800.0,0.31715214]
[1749931083516,0.57398481,104810.0,104800.0,0.28970133]
[1749931083769,0.59664015,104810.0,104800.0,0.28970133]
[1749931084019,0.35908095,104810.0,104800.0,0.28970133]
[1749931084294,0.36862157,104810.0,104800.0,0.30878429]
[1749931084487,0.36862147,104810.0,104800.0,0.30878429]
[1749931084696,0.34954034,104810.0,104800.0,0.30878429]
[1749931084918,0.34,104810.0,104800.0,0.30878429]
[1749931085129,0.34,104810.0,104800.0,0.37545459]
[1749931085339,0.39270031,104820.0,104810.0,0.27280298]
[1749931085613,0.48894207,104820.0,104810.0,0.27280298]
[1749931086024,0.28724244,104820.0,104810.0,0.27280298]
[1749931086238,0.12486106,104820.0,104810.0,0.3176595]
[1749931086450,0.13440113,104820.0,104810.0,0.3176595]
[1749931086668,0.13640113,104820.0,104810.0,0.3176595]
[1749931087111,0.02107932,104820.0,104810.0,0.3176595]
[1749931087326,0.05169953,104820.0,104810.0,0.30811907]
[1749931087770,0.02307913,104820.0,104810.0,0.28234341]
[1749931087982,0.038159,104820.0,104810.0,0.2823435]
[1749931088204,0.03815891,104820.0,104810.0,0.29288393]
[1749931088445,0.02861893,104820.0,104810.0,0.29288393]
[1749931089094,0.0095387,104830.0,104820.0,0.27278315]
[1749931089310,0.03815518,104830.0,104820.0,0.27278315]
[1749931089515,0.04769443,104830.0,104820.0,0.28232285]
[1749931089736,0.04769443,104830.0,104820.0,0.29186246]
[1749931089952,0.03815518,104830.0,104820.0,0.29186246]
[1749931090188,0.04769443,104830.0,104820.0,0.29186246]
[1749931090402,0.05169443,104830.0,104820.0,0.29186246]
[1749931090622,0.05169425,104830.0,104820.0,0.31930638]
[1749931091067,0.05169425,104830.0,104820.0,0.31930635]
[1749931091697,0.38215509,104830.0,104820.0,0.31930635]
[1749931091912,0.38215509,104830.0,104820.0,0.31930632]
[1749931092697,0.39169434,104830.0,104820.0,0.30140198]
[1749931093125,0.19319645,104830.0,104820.0,0.30140198]
[1749931093350,0.004983,104830.0,104820.0,0.27010198]
[1749931093576,0.02406114,104830.0,104820.0,0.27010198]
[1749931093803,0.04313891,104830.0,104820.0,0.26056246]
[1749931094030,0.04313891,104830.0,104820.0,0.29266246]
[1749931095518,0.05267734,104830.0,104820.0,0.29266246]
[1749931096365,0.04313809,104830.0,104820.0,0.36630237]
[1749931096574,0.05267725,104830.0,104820.0,0.30220198]
[1749931099143,0.04313809,104830.0,104820.0,0.30220198]
[1749931100090,0.05267725,104830.0,104820.0,0.30220198]
[1749931101979,0.04313809,104830.0,104820.0,0.30220198]
[1749931103205,0.04313809,104830.0,104820.0,0.36725633]
[1749931103441,0.86002343,104840.0,104830.0,0.0327]
[1749931103676,0.95626519,104840.0,104830.0,0.0327]
[1749931104115,0.95626519,104840.0,104830.0,0.23302433]
[1749931104565,0.95926519,104840.0,104830.0,0.23302433]
[1749931105404,0.95926519,104840.0,104830.0,0.26995637]
[1749931105878,0.80178519,104840.0,104830.0,0.10937129]
[1749931106092,0.39728153,104840.0,104830.0,0.32977303]
[1749931106316,0.37461365,104840.0,104830.0,0.32977303]
[1749931106598,0.38415199,104840.0,104830.0,0.32977321]
[1749931106823,0.38415199,104840.0,104830.0,0.30237987]
[1749931107067,0.38115199,104840.0,104830.0,0.30237987]
[1749931107288,0.37815199,104840.0,104830.0,0.30237987]
[1749931108190,0.37815199,104840.0,104830.0,0.30437987]
[1749931109317,0.56891887,104840.0,104830.0,0.30437987]
[1749931109558,0.59158675,104840.0,104830.0,0.30437987]
[1749931111176,0.59158675,104840.0,104830.0,0.29484117]
[1749931111697,0.58204914,104840.0,104830.0,0.29484117]
[1749931112120,0.57251126,104840.0,104830.0,0.27576349]
[1749931112334,0.57251126,104840.0,104830.0,0.28530256]
[1749931113829,0.5629731,104840.0,104830.0,0.26622433]
[1749931114059,0.5629731,104840.0,104830.0,0.27576349]